[Event "FIDE Candidates 2024"]
[Site "Toronto"]
[Date "2024.04.09"]
[Round "5.3"]
[White "Gukesh D"]
[Black "Abasov, Nijat"]
[Result "1-0"]
[ECO "C43"]
[WhiteElo "2743"]
[BlackElo "2632"]
[Annotator "TA"]
[PlyCount "173"]
[EventDate "2024.04.02"]
[EventType "tourn"]
[EventCountry "CAN"]
[SourceTitle "playchess.com"]
[Source "ChessBase"]
[SourceQuality "1"]
[TimeControl "40/7200:1800+30"]

{[%evp 9,173,0,0,0,0,7,14,-10,0,0,0,0,0,0,25,22,18,0,0,0,0,0,0,0,18,20,27,12,41,6,12,0,0,0,78,75,72,70,78,81,113,95,104,99,117,141,158,100,181,0,164,0,193,197,206,190,157,152,197,169,213,206,179,128,141,135,131,128,130,76,63,16,14,18,27,12,93,94,96,100,90,103,439,95,100,101,90,107,97,90,114,85,93,92,89,3,33,3,3,4,174,174,174,0,78,0,168,128,314,304,315,280,271,283,283,277,278,268,267,0,264,48,50,48,57,48,58,48,48,48,56,0,48,48,48,48,48,48,49,49,49,49,49,48,49,49,49,49,50,56,56,57,57,57,57,57,1896,8,1609,1609,29983,29984,29986,29987,29987,4133]} 1. e4 {[%emt 0:00:09]} e5 {[%emt 0:00:05]} 2. Nf3 {[%emt 0:00:06]} Nf6 {[%emt 0:00:05]} 3. d4 {[%emt 0:06:09]} Nxe4 {[%emt 0:00:15]} 4. Bd3 {[%emt 0:00:08]} d5 {[%emt 0:00:09]} 5. dxe5 {[%emt 0:00:06]} Nc5 {[%emt 0:00:57]} 6. Be2 {[%emt 0:00:06]} Be7 {[%emt 0:00:35]} 7. O-O {[%emt 0:00:10]} O-O {[%emt 0:01:17]} 8. Re1 {[%emt 0:00:19] The position is equal.} c6 {[%emt 0:01:46]} 9. Nbd2 {[%emt 0:00:27]} Nbd7 {[%emt 0:10:00]} 10. h3 {[%emt 0:00:54]} a5 {[%emt 0:02:52]} 11. Nb3 {[%emt 0:11:04]} f6 {[%emt 0:09:10]} 12. exf6 {[%emt 0:03:11]} Nxf6 {[%emt 0:05:58]} 13. Be3 {[%emt 0:05:27]} Nce4 {[%emt 0:06:20]} 14. Nbd2 {[%emt 0:24:42]} a4 {[%emt 0:03:30]} 15. Nxe4 {[%emt 0:04:25]} Nxe4 {[%emt 0:00:37]} 16. a3 {[%emt 0:00:57]} Bc5 {[%emt 0:08:19] White must now prevent ...Bxe3.} 17. Bd3 {[%emt 0:02:45] And now Bxe4 would win.} Bxe3 {[%emt 0:01:04]} 18. Rxe3 {[%emt 0:00:05]} Qf6 {[%emt 0:01:10]} 19. c3 {[%emt 0:02:13][%cal Od1e2]} Bf5 {[%emt 0:25:27]} 20. Qe2 {[%emt 0:06:27]} Nd6 {[%emt 0:09:31]} 21. Bxf5 {[%emt 0:00:51]} Nxf5 {[%emt 0:00:36]} (21... Qxf5 $11 22. Re1 Rae8) 22. Re6 $16 {[%emt 0:02:41]} Qf7 {[%emt 0:00:28]} 23. Re1 {[%emt 0:03:56]} h6 {[%emt 0:00:17]} 24. Qc2 {[%emt 0:17:20]} Qd7 {[%emt 0:01:00]} 25. c4 {[%emt 0:08:18]} (25. g4 {keeps more tension.} Nd6 26. Re7 Qd8 27. Qg6) 25... d4 {[%emt 0:01:21]} 26. c5 {[%emt 0:06:54]} Qf7 {[%emt 0:03:41][%cal Of5e3]} 27. R6e4 {[%emt 0:02:15] White is much more active.} Qd5 {[%emt 0:02:29]} 28. Re5 {[%emt 0:02:21]} (28. Qd3 $142) 28... Qf7 {[%emt 0:00:05]} (28... d3 $16 29. Rxd5 dxc2) 29. R5e4 {[%emt 0:00:04]} Qd5 {[%emt 0:00:06]} 30. Re5 {[%emt 0:00:18]} Qf7 {[%emt 0:00:05]} (30... d3 $6 31. Rxd5 dxc2 32. Rd2 $16) 31. R1e4 {[%emt 0:00:14][%cal Oe4f4]} Rad8 {[%emt 0:00:33]} 32. Rf4 {[%emt 0:00:50]} (32. Qxa4 d3) 32... d3 {[%emt 0:00:03]} 33. Qxa4 {[%emt 0:00:15]} Qa2 {[%emt 0:03:42][%cal Od3d2]} 34. Kh2 {[%emt 0:02:02]} (34. Rfxf5 $2 Rxf5 35. Rxf5 Qb1+ 36. Kh2 d2 (36... Qxb2 $2 37. Qh4 $18) 37. Qc4+ Kh8 38. Nxd2 Qxf5 $19) (34. Rexf5 $2 Qb1+ 35. Kh2 Rxf5 36. Rxf5 d2 (36... Qxb2 $2 37. Qh4 $18) 37. Qc4+ Kh8 38. Nxd2 Qxf5 $17) 34... g6 {[%emt 0:05:51][%cal Od3d2] ...d2! is the strong threat.} 35. Qb4 {[%emt 0:00:04]} Qf7 {[%emt 0:00:05]} 36. Re1 {[%emt 0:00:28]} (36. g4 $18 d2 37. Nxd2 (37. gxf5 $2 d1=Q $19)) 36... Rfe8 {[%emt 0:00:49]} 37. Rfe4 {[%emt 0:00:29]} Rxe4 {[%emt 0:03:53]} 38. Rxe4 {[%emt 0:00:00]} Rd5 {[%emt 0:02:31]} 39. Nd2 {[%emt 0:00:01]} (39. Qd2 $142) 39... Ng7 {[%emt 0:00:02]} 40. Kg1 {[%emt 0:00:00]} (40. Rf4 $14 {is more appropriate.} Qe7 41. Rf3) 40... Ne6 $11 {[%emt 0:00:00]} 41. Re3 {[%emt 0:14:11]} Nxc5 {[%emt 0:06:41]} 42. Qc4 {[%emt 0:02:00]} Ne6 {[%emt 0:06:12]} (42... g5 $11 {keeps the balance.}) 43. Rxd3 $16 {[%emt 0:11:50]} b5 {[%emt 0:03:03]} 44. Qc3 {[%emt 0:00:01]} (44. Qxc6 $2 Rxd3 45. Qc8+ Nf8 $19) 44... Nf4 {[%emt 0:02:08]} 45. Re3 {[%emt 0:00:02] Wards off Ne2+} Rg5 $2 {[%emt 0:00:49][%mdl 8192]} (45... Rd3 $16 {is tougher.} 46. Qc2 (46. Rxd3 Ne2+ 47. Kf1 Nxc3 $19) 46... Rxe3 47. fxe3 Ne2+ 48. Kh2 Qc7+ 49. Kh1 Ng3+ 50. Kg1 Kh7) 46. Ne4 $2 {[%emt 0:02:41]} (46. Qxc6 $18 h5 (46... Rxg2+ $2 47. Kf1 $18) 47. Re8+ Kh7 48. Ne4 Ne2+ 49. Kh2 (49. Kf1 Ng3+ 50. Nxg3 Rc5 $18)) 46... Rxg2+ {[%emt 0:01:28]} 47. Kh1 {[%emt 0:00:01]} Nd5 {[%emt 0:06:38][%csl LRc3,LRe3]} 48. Nf6+ {[%emt 0:00:01]} (48. Qxc6 $2 Nxe3 49. Nf6+ Kg7 50. Ne8+ Kf8 $19) 48... Nxf6 {[%emt 0:00:04]} 49. Kxg2 {[%emt 0:00:02]} Nd5 {[%emt 0:00:05][%csl LRc3,LRe3]} 50. Qxc6 {[%emt 0:00:03]} Nxe3+ {[%emt 0:00:15]} 51. fxe3 {[%emt 0:00:01][%mdl 4096] Endgame. KQ-KQ} Qf5 {[%emt 0:01:51]} 52. b3 {[%emt 0:03:16]} ({Better is} 52. e4 $16 Qg5+ 53. Kf3 Qh5+ 54. Kf2) 52... h5 {[%emt 0:02:20]} 53. a4 {[%emt 0:02:04]} (53. e4 $5 Qg5+ $8 54. Kf3 $14) 53... bxa4 {[%emt 0:00:06]} 54. bxa4 {[%emt 0:00:49] Threatening e4.} Qg5+ $2 {[%emt 0:00:36]} (54... Qd3 $11 {and Black stays safe.}) 55. Kf2 $1 $18 {[%emt 0:00:08]} Qf5+ {[%emt 0:00:23]} 56. Kg2 {[%emt 0:00:08]} (56. Ke2 $18) 56... Qg5+ $16 {[%emt 0:00:07]} 57. Kf2 {[%emt 0:00:13]} (57. Kf3 $1 $16) 57... Qf5+ $18 {[%emt 0:00:15]} 58. Ke2 {[%emt 0:00:04] aiming for e4.} g5 $2 {[%emt 0:04:36]} (58... Kh8 $16 {might work better.}) 59. e4 {[%emt 0:01:07]} Qxh3 {[%emt 0:00:54]} 60. Qg6+ {[%emt 0:00:01]} Kh8 {[%emt 0:00:04]} 61. Qh6+ {[%emt 0:00:09]} (61. Qxg5 Qh2+ 62. Ke3 Qh3+ 63. Kf4 Qf1+ 64. Kg3 Qe1+ 65. Kf4 Qf2+ 66. Ke5 h4 $11) 61... Kg8 {[%emt 0:00:04]} 62. Qxg5+ {[%emt 0:00:03]} Kh8 {[%emt 0:00:20]} 63. Qh6+ {[%emt 0:02:15]} Kg8 {[%emt 0:00:01]} 64. Qg5+ {[%emt 0:00:05]} Kh8 $1 {[%emt 0:00:03]} 65. a5 $2 {[%emt 0:00:51]} ({White should play} 65. Qe5+ $18 Kg8 66. Qg5+) 65... h4 $1 $14 {[%emt 0:00:30]} 66. Qh6+ {[%emt 0:00:55]} Kg8 {[%emt 0:00:03]} 67. Qg6+ $1 {[%emt 0:00:09]} Kh8 $1 {[%emt 0:00:01]} 68. a6 {[%emt 0:00:41]} ({Of course not} 68. Qh6+ Kg8 $11) 68... Qh2+ $1 {[%emt 0:03:24]} 69. Ke3 {[%emt 0:00:02]} Qh3+ {[%emt 0:00:57]} 70. Ke2 {[%emt 0:00:58]} Qh2+ $1 {[%emt 0:00:04]} 71. Kd3 {[%emt 0:00:57] White threatens Qe8+ and mate.} Qh3+ {[%emt 0:01:07]} 72. Kc4 {[%emt 0:00:09]} Qc8+ {[%emt 0:00:05]} 73. Kd5 {[%emt 0:01:10]} Qd8+ {[%emt 0:03:15]} 74. Qd6 {[%emt 0:00:19]} Qa5+ {[%emt 0:00:01]} 75. Ke6 {[%emt 0:00:12] Threatening mate with Qf8+.} h3 {[%emt 0:00:31]} 76. Kf7 {[%emt 0:00:45][%cal Rd6h6]} Qa2+ $1 {[%emt 0:01:05]} 77. Qe6 $1 {[%emt 0:00:39]} Qxe6+ {[%emt 0:00:09]} 78. Kxe6 {[%emt 0:00:01] Kf6 would kill now. KPP-KP} h2 {[%emt 0:00:05]} 79. a7 {[%emt 0:00:03] Intending Kf6 and mate.} h1=Q {[%emt 0:00:07]} 80. a8=Q+ {[%emt 0:00:03] KQ-KQ} (80. a8=B {is a self mate.} Qh3+ 81. Kf6 Qh6+ 82. Kf7 Qg7+ 83. Ke6 Qg8+ 84. Kf5 Qxa8 85. Kf4 Kg7 86. Ke5 Qa5+ 87. Kd4 Kf6 88. e5+ Ke6 (88... Qxe5+ 89. Kd3 Kf5 90. Kc4 Ke4 91. Kb3 Kd3 92. Kb4 Qd6+ 93. Kb5 Kc3 94. Ka5 Kc4 95. Ka4 Qb4#) 89. Ke3 Kxe5 90. Kd3 Qb4 91. Ke3 Qe4+ 92. Kd2 Kd4 93. Kc1 Qg2 94. Kd1 Kd3 95. Ke1 Qg1#) 80... Kg7 {[%emt 0:00:13]} 81. Qa7+ {[%emt 0:00:22]} Kh6 $1 {[%emt 0:00:47]} 82. Qe3+ {[%emt 0:00:08]} Kh5 $2 {[%emt 0:00:08][%mdl 8192] [#]} (82... Kh7 $14) 83. Kf5 $2 {[%emt 0:02:19]} (83. Qc5+ $1 $18 Kh4 84. Qf2+ Kh3 85. Qf5+ Kg2 86. e5) 83... Qf1+ $2 {[%emt 0:00:35][%mdl 8192]} (83... Qg2 $11) 84. Qf4 $18 {[%emt 0:00:03]} Qb5+ {[%emt 0:00:11] [#]} 85. Qe5 $1 {[%emt 0:00:15] White mates.} Qd7+ {[%emt 0:01:40]} 86. Kf6+ {[%emt 0:00:24]} Kh4 {[%emt 0:00:16]} 87. Qg5+ {[%emt 0:00:04] Weighted Error Value: White=0.37/Black=0.30.  Loses game:     	---       	Black=5      Missed win:     	White=3     	---        Mistake:       	White=7     	Black=3      Inaccurate:     	White=2     	Black=4      OK:         	White=30    	Black=28     Best:        	White=7     	Black=14     Strong:       	White=3     	Black=7} (87. Qf4+ $142 Kh3 88. Qf5+ Qxf5+ 89. Kxf5 (89. exf5 Kg4 90. Ke5 Kh5 91. f6 Kh6 92. Ke6 Kg5 93. f7 Kf4 94. f8=Q+ Ke4) 89... Kg3 90. e5 Kf2 91. Ke4 Kf1 92. e6) 1-0

[Event "FIDE Candidates 2024"]
[Site "Toronto"]
[Date "2024.04.10"]
[Round "6.1"]
[White "Nepomniachtchi, Ian"]
[Black "Caruana, Fabiano"]
[Result "1/2-1/2"]
[ECO "C47"]
[WhiteElo "2758"]
[BlackElo "2803"]
[Annotator "TA"]
[PlyCount "81"]
[EventDate "2024.04.02"]
[EventType "tourn"]
[EventCountry "CAN"]
[SourceTitle "playchess.com"]
[Source "ChessBase"]
[SourceQuality "1"]
[TimeControl "40/7200:1800+30"]

{[%evp 14,81,0,-10,0,4,8,22,20,20,10,18,17,11,11,11,10,13,21,14,12,15,10,17,14,10,16,16,14,11,8,8,10,0,0,0,0,0,9,4,5,5,8,8,7,11,10,0,7,0,10,11,18,18,18,21,18,18,18,14,14,14,14,14,14,14,14,14,14,14]} 1. e4 {[%emt 0:00:06]} e5 {[%emt 0:00:06]} 2. Nf3 {[%emt 0:00:06]} Nc6 {[%emt 0:00:04]} 3. Nc3 {[%emt 0:00:04]} Nf6 {[%emt 0:00:07]} 4. d4 {[%emt 0:00:05]} exd4 {[%emt 0:00:06]} 5. Nxd4 {[%emt 0:00:05]} Bb4 {[%emt 0:00:14]} 6. Nxc6 {[%emt 0:00:07]} bxc6 {[%emt 0:00:06]} 7. Bd3 {[%emt 0:00:06]} d5 {[%emt 0:00:20]} 8. exd5 {[%emt 0:00:09] The position is equal.} O-O {[%emt 0:00:10]} 9. O-O {[%emt 0:00:07]} Bg4 {[%emt 0:00:21]} 10. f3 {[%emt 0:00:42]} Bh5 {[%emt 0:00:06]} 11. Bg5 {[%emt 0:00:31]} cxd5 {[%emt 0:02:07]} 12. Bxf6 {[%emt 0:00:36]} Qxf6 {[%emt 0:00:05]} 13. Nxd5 {[%emt 0:00:08]} Qxb2 {[%emt 0:01:12]} 14. Rb1 {[%emt 0:08:16]} Bc5+ {[%emt 0:00:16]} 15. Kh1 {[%emt 0:00:05]} Qe5 {[%emt 0:01:05][%cal Of8d8]} 16. Re1 {[%emt 0:00:45]} Qd6 {[%emt 0:00:05][%cal Oa8e8] Black is weak on the light squares} 17. Ne7+ {[%emt 0:00:23]} Kh8 {[%emt 0:00:14]} 18. Qe2 {[%emt 0:00:20]} Bg6 {[%emt 0:00:19]} 19. Nxg6+ {[%emt 0:00:50]} hxg6 {[%emt 0:00:06]} 20. Qe5 {[%emt 0:02:44]} Rab8 {[%emt 0:11:21]} 21. Qxd6 {[%emt 0:00:25]} Bxd6 {[%emt 0:00:16]} 22. g3 {[%emt 0:00:08]} g5 {[%emt 0:01:49]} 23. Rxb8 {[%emt 0:01:06]} Rxb8 $11 {[%emt 0:00:09][%mdl 4096] Endgame. KRB-KRB} 24. Re4 {[%emt 0:00:03]} a5 {[%emt 0:08:57]} 25. Rg4 {[%emt 0:07:38]} Be7 {[%emt 0:08:11]} 26. Rd4 {[%emt 0:01:13]} Rd8 {[%emt 0:01:15] Repels Rd7} 27. Re4 {[%emt 0:01:06]} Bd6 {[%emt 0:02:47]} 28. Ra4 {[%emt 0:00:45]} Ra8 {[%emt 0:00:32]} 29. Rg4 {[%emt 0:03:34]} Be7 {[%emt 0:00:13]} 30. Rd4 {[%emt 0:01:29]} Rd8 $1 {[%emt 0:00:07] Repels Rd5} 31. Ra4 {[%emt 0:00:31]} Ra8 {[%emt 0:00:08]} 32. Be4 {[%emt 0:01:21]} Ra7 {[%emt 0:02:11]} 33. Rd4 {[%emt 0:02:31] aiming for Rd7.} c5 {[%emt 0:00:50]} 34. Rd1 {[%emt 0:00:56]} a4 {[%emt 0:01:16]} 35. Rb1 {[%emt 0:04:34] [#] White wants to mate with Rb8+.} g6 {[%emt 0:00:12]} 36. a3 {[%emt 0:00:26]} c4 {[%emt 0:00:14]} 37. Rb7 {[%emt 0:00:05]} Rxb7 {[%emt 0:00:04]} 38. Bxb7 {[%emt 0:00:03]} Bxa3 {[%emt 0:00:05]} 39. Bc6 {[%emt 0:00:03]} c3 {[%emt 0:00:05]} 40. Kg2 {[%emt 0:00:00][%mdl 1024] White has compensation.} ({But not} 40. Bxa4 Kg7 $16) 40... Kg7 {[%emt 0:00:00]} 41. Bxa4 {[%emt 0:00:08] An interesting draw.   Weighted Error Value: White=0.01 (flawless) /Black=0.01 (flawless) .  OK:         	White=16    	Black=14     Best:        	White=3     	Black=2      Strong:       	---       	Black=1} 1/2-1/2

[Event "FIDE Candidates 2024"]
[Site "Toronto"]
[Date "2024.04.10"]
[Round "6.2"]
[White "Gukesh D"]
[Black "Nakamura, Hikaru"]
[Result "1/2-1/2"]
[ECO "B27"]
[WhiteElo "2743"]
[BlackElo "2789"]
[Annotator "TA"]
[PlyCount "80"]
[EventDate "2024.04.02"]
[EventType "tourn"]
[EventCountry "CAN"]
[SourceTitle "playchess.com"]
[Source "ChessBase"]
[SourceQuality "1"]
[TimeControl "40/7200:1800+30"]

{[%evp 9,80,20,19,5,2,8,32,0,0,0,0,0,0,0,9,0,0,0,0,0,0,-14,-16,-4,-8,-45,-25,-34,-18,-54,-36,-22,0,-8,-11,-13,0,-9,-10,-5,-5,-5,-5,-19,-19,-19,-19,-19,-19,-19,-11,-19,0,-19,0,-19,-6,-19,0,0,0,0,0,0,0,0,0,0,0,0,0,0,0]} 1. e4 {[%emt 0:00:16]} c5 {[%emt 0:00:07]} 2. Nf3 {[%emt 0:00:15]} g6 {[%emt 0:00:04]} 3. c3 {[%emt 0:01:31]} d5 {[%emt 0:00:26]} 4. e5 {[%emt 0:00:08]} Bg4 {[%emt 0:00:27]} 5. Bb5+ {[%emt 0:05:53]} Nc6 {[%emt 0:00:17]} 6. Bxc6+ {[%emt 0:00:17]} bxc6 {[%emt 0:00:09]} 7. O-O {[%emt 0:05:32]} c4 {[%emt 0:00:15]} 8. d3 {[%emt 0:08:45] White is slightly better.} cxd3 {[%emt 0:01:02]} 9. Qxd3 {[%emt 0:00:07]} Bxf3 {[%emt 0:00:56]} 10. Qxf3 {[%emt 0:00:08]} Bg7 {[%emt 0:00:04]} 11. Qe2 {[%emt 0:02:02]} Qc7 {[%emt 0:18:29]} 12. Re1 {[%emt 0:04:21]} e6 {[%emt 0:00:57]} 13. b4 {[%emt 0:09:45]} Ne7 {[%emt 0:04:14]} 14. Nd2 {[%emt 0:00:37]} Nc8 {[%emt 0:02:28]} 15. c4 {[%emt 0:09:29]} O-O {[%emt 0:08:24]} 16. Bb2 {[%emt 0:09:01]} a5 {[%emt 0:21:02]} 17. a3 {[%emt 0:08:43]} axb4 {[%emt 0:02:54]} 18. axb4 {[%emt 0:00:06]} Rxa1 {[%emt 0:00:54]} 19. Rxa1 {[%emt 0:01:14]} dxc4 {[%emt 0:00:04]} 20. Nxc4 {[%emt 0:00:19]} Nb6 {[%emt 0:00:04] The position is equal.} 21. Nxb6 {[%emt 0:05:40]} Qxb6 {[%emt 0:00:04]} 22. Bc3 {[%emt 0:00:23]} Qb5 {[%emt 0:03:01]} 23. Qe4 {[%emt 0:01:35]} Rd8 {[%emt 0:01:02]} 24. g3 {[%emt 0:06:56]} Bf8 {[%emt 0:09:27]} 25. Kg2 {[%emt 0:07:20]} Qb7 {[%emt 0:04:37]} 26. Rc1 {[%emt 0:06:42]} Rd5 {[%emt 0:00:37]} 27. Be1 {[%emt 0:01:00]} h5 {[%emt 0:05:34]} 28. Bc3 {[%emt 0:01:51]} Be7 {[%emt 0:03:24]} 29. h4 {[%emt 0:01:39]} Bf8 {[%emt 0:01:54]} 30. Ra1 {[%emt 0:00:46]} Be7 {[%emt 0:01:51]} 31. Rc1 {[%emt 0:00:07]} Bf8 {[%emt 0:02:37]} 32. Ra1 {[%emt 0:01:02]} Rb5 {[%emt 0:00:21][%cal Rf8b4,Bd5b5,Bb5b6,Bb6a6][%mdl 32]} 33. Rc1 {[%emt 0:03:49]} Rb6 {[%emt 0:01:37]} 34. Bd2 {[%emt 0:01:08]} Ra6 {[%emt 0:00:14]} 35. Rc4 {[%emt 0:02:42]} Rb6 {[%emt 0:04:50]} 36. Be3 {[%emt 0:01:22]} Rxb4 {[%emt 0:00:36]} 37. Qxc6 {[%emt 0:00:08]} Qxc6+ {[%emt 0:03:01]} 38. Rxc6 {[%emt 0:00:02]} Rb8 {[%emt 0:00:05] Dodges Rc8} 39. Bc5 {[%emt 0:01:33]} Bxc5 {[%emt 0:00:07]} 40. Rxc5 {[%emt 0:00:00]} Kg7 {[%emt 0:00:00] Weighted Error Value: White=0.05 (flawless) /Black=0.06 (flawless) .  Inaccurate:     	White=3     	---        OK:         	White=13    	Black=11} 1/2-1/2

[Event "FIDE Candidates 2024"]
[Site "Toronto"]
[Date "2024.04.10"]
[Round "6.4"]
[White "Praggnanandhaa R"]
[Black "Abasov, Nijat"]
[Result "1-0"]
[ECO "D40"]
[WhiteElo "2747"]
[BlackElo "2632"]
[Annotator "TA"]
[PlyCount "89"]
[EventDate "2024.04.02"]
[EventType "tourn"]
[EventCountry "CAN"]
[SourceTitle "playchess.com"]
[Source "ChessBase"]
[SourceQuality "1"]
[TimeControl "40/7200:1800+30"]

{[%evp 14,89,13,0,5,0,4,0,0,13,57,43,59,8,8,10,22,21,39,41,24,27,33,21,38,23,78,66,69,77,98,62,63,78,74,50,45,45,65,20,94,87,91,90,97,72,73,78,139,118,119,70,83,77,76,74,85,72,75,8,8,0,8,7,71,71,154,168,1553,1477,2558,1887,29963,29965,29964,6107,29973,29973]} 1. d4 {[%emt 0:00:50]} d5 {[%emt 0:00:07]} 2. Nf3 {[%emt 0:00:27]} Nf6 {[%emt 0:00:07]} 3. c4 {[%emt 0:00:16]} e6 {[%emt 0:00:06]} 4. Nc3 {[%emt 0:00:22]} c5 {[%emt 0:00:10]} 5. e3 {[%emt 0:00:16]} Nc6 {[%emt 0:00:08]} 6. a3 {[%emt 0:00:33]} a6 {[%emt 0:00:40]} 7. b3 {[%emt 0:00:18]} cxd4 {[%emt 0:01:49]} 8. exd4 {[%emt 0:00:12]} Be7 {[%emt 0:00:28]} 9. c5 {[%emt 0:01:56]} b6 {[%emt 0:00:09]} 10. cxb6 {[%emt 0:02:32]} Qxb6 {[%emt 0:01:36] The position is equal.} 11. b4 {[%emt 0:02:55] Repels Na5} Ne4 {[%emt 0:10:39]} 12. Na4 {[%emt 0:02:21]} Qb8 {[%emt 0:02:33]} 13. Be2 {[%emt 0:05:36]} (13. Bd3 $14) 13... O-O $11 {[%emt 0:02:43]} 14. O-O {[%emt 0:05:08]} Bf6 {[%emt 0:07:01]} 15. Be3 {[%emt 0:10:14]} Ne7 {[%emt 0:00:26]} 16. Nc5 {[%emt 0:08:21] Prevents Bd7.} Nc3 {[%emt 0:07:55]} 17. Qd2 {[%emt 0:00:33]} Nxe2+ {[%emt 0:00:08]} 18. Qxe2 {[%emt 0:00:03]} Nf5 {[%emt 0:05:25]} 19. Rab1 {[%emt 0:13:26]} e5 {[%emt 0:17:48]} (19... Be7 $11) 20. dxe5 $16 {[%emt 0:00:37]} Bxe5 {[%emt 0:00:07]} 21. Rfd1 {[%emt 0:03:44]} d4 {[%emt 0:02:58]} 22. Bg5 {[%emt 0:04:25]} Bd6 {[%emt 0:00:17]} 23. g4 {[%emt 0:07:26]} (23. Nxd4 $2 Nxd4 (23... Bxh2+ 24. Kh1 $11) 24. Qe4 h6 (24... Bxh2+ $2 25. Kh1 $19) 25. Bxh6 Bxh2+ 26. Kh1 Nf5 $19) 23... h6 {[%emt 0:00:34] [#]} 24. Qe4 $1 {[%emt 0:03:23] White has more active pieces. The black rooks are passive.} hxg5 {[%emt 0:03:05]} 25. gxf5 {[%emt 0:00:07]} Ra7 $1 {[%emt 0:03:28]} 26. Rxd4 {[%emt 0:12:43]} ({Much weaker is} 26. Nxg5 Re7 27. Qg4 (27. Qxd4 Bxh2+ 28. Kg2 Bxf5 $17) 27... Bxh2+ 28. Kg2 Qf4 29. Qxf4 Bxf4 $15) (26. Nxd4 {simplifies} Re7 27. Qf3 Ree8 28. Qg4) 26... g4 {[%emt 0:01:11]} 27. Ng5 {[%emt 0:04:07] Rbd1 would now be deadly. A dynamic duo of knights.} (27. Qxg4 $2 {is the wrong capture.} Bxc5 28. Rf4 Bd6 $19) 27... Bxh2+ {[%emt 0:10:47]} 28. Kg2 {[%emt 0:00:11]} Qe5 {[%emt 0:00:04]} 29. Rd5 {[%emt 0:08:56] Some like it hot} Qxe4+ {[%emt 0:01:12]} 30. Ngxe4 {[%emt 0:00:06]} Bb8 {[%emt 0:00:30]} (30... Bc7 $142) 31. f6 {[%emt 0:04:09]} Bf4 {[%emt 0:10:25]} 32. Rbd1 {[%emt 0:01:37]} ({White should play} 32. a4 $16) 32... Rc7 $1 $14 {[%emt 0:04:39]} 33. R1d4 {[%emt 0:05:42]} Rc6 {[%emt 0:07:04]} 34. Nd6 {[%emt 0:00:23]} g5 {[%emt 0:06:24]} 35. Nxc8 {[%emt 0:01:47]} Rfxc8 {[%emt 0:00:08]} 36. Rd8+ {[%emt 0:00:06]} ({White should try} 36. Ne4 $16) 36... Rxd8 {[%emt 0:00:42]} 37. Rxd8+ $11 {[%emt 0:00:01][%mdl 4096] Endgame. KRB-KRN} Kh7 {[%emt 0:00:05]} 38. Ra8 {[%emt 0:00:29]} Rxf6 {[%emt 0:00:48]} (38... Rd6 $11 {remains equal.}) 39. Rxa6 $16 {[%emt 0:00:04]} Rf5 {[%emt 0:00:06]} ({Better is} 39... Kg7) 40. Nd7 {[%emt 0:00:00] Hoping for Ra5.} Kg7 $2 {[%emt 0:00:00] [#]} (40... Bc1) 41. Ra5 $1 $18 {[%emt 0:05:50]} Kg6 {[%emt 0:05:23]} 42. a4 {[%emt 0:01:42][%cal Ba3a4,Ba4a5,Ba5a6][%mdl 32] Strongly threatening Rxf5.} g3 {[%emt 0:00:24]} 43. Rxf5 {[%emt 0:00:49]} Kxf5 {[%emt 0:00:06]} 44. a5 {[%emt 0:00:07] Threatening mate with a6.} gxf2 {[%emt 0:00:17]} 45. a6 {[%emt 0:00:12] Weighted Error Value: White=0.13 (very precise) /Black=0.42.  Mistake:       	White=3     	Black=6      Inaccurate:     	White=2     	Black=2      OK:         	White=12    	Black=10     Best:        	White=3     	Black=4      Strong:       	White=1     	Black=2} 1-0